bitfinex/quotes_BTCUSD_20250208
["timestamp","ask_amount","ask_price","bid_price","bid_amount"]
[1738996211775,0.47985125,96146.0,96145.0,0.00022428]
[1738996212111,0.48485125,96146.0,96145.0,0.00022428]
[1738996215242,0.49519726,96146.0,96145.0,0.00022428]
[1738996216073,0.156014,96145.0,96144.0,0.00012877]
[1738996216441,0.15705194,96145.0,96144.0,0.00012877]
[1738996217144,0.47189119,96145.0,96144.0,0.00012877]
[1738996217291,0.47485325,96145.0,96144.0,0.00012877]
[1738996217491,0.4975796,96145.0,96144.0,0.00012877]
[1738996224356,0.3415656,96145.0,96144.0,0.15023242]
[1738996225208,0.3325656,96145.0,96144.0,0.15023242]
[1738996225633,0.3345656,96145.0,96144.0,0.15023242]
[1738996225858,0.3345656,96145.0,96144.0,0.1504567]
[1738996226462,0.4915796,96145.0,96144.0,0.1504567]
[1738996226994,0.4885796,96145.0,96144.0,0.1504567]
[1738996227298,0.4885796,96145.0,96144.0,0.1514567]
[1738996227598,0.3325656,96145.0,96144.0,0.1514567]
[1738996228704,0.4885796,96145.0,96144.0,0.1514567]
[1738996229481,0.3325656,96145.0,96144.0,0.1514567]
[1738996230606,0.4885796,96145.0,96144.0,0.1514567]
[1738996230989,0.3325656,96145.0,96144.0,0.1514567]
[1738996231947,0.4885796,96145.0,96144.0,0.1514567]
[1738996236915,0.4885796,96145.0,96144.0,0.00135305]
[1738996236916,0.53558159,96145.0,96144.0,0.00135305]
[1738996237132,0.5712796,96145.0,96144.0,0.00135305]
[1738996237715,0.5712796,96145.0,96144.0,0.00035305]
[1738996237991,0.58157499,96145.0,96144.0,0.00035305]
[1738996238292,0.58657499,96145.0,96144.0,0.00035305]
[1738996239375,0.60716545,96145.0,96144.0,0.00035305]
[1738996239959,0.61116545,96145.0,96144.0,0.00035305]
[1738996240429,0.61127225,96145.0,96144.0,0.00035305]
[1738996250040,0.60097686,96145.0,96144.0,0.00035305]
[1738996253736,0.6005218,96145.0,96144.0,0.00035305]
[1738996256365,0.5178218,96145.0,96144.0,0.00035305]
[1738996260481,0.61078372,96145.0,96144.0,0.00035305]
[1738996271798,0.5178218,96145.0,96144.0,0.00035305]
[1738996273336,0.55016409,96145.0,96144.0,0.00035305]
[1738996274882,0.64312601,96145.0,96144.0,0.00035305]
[1738996277720,0.94916767,96145.0,96144.0,0.00035305]
[1738996277933,1.00532966,96145.0,96144.0,0.00035305]
[1738996279307,0.91236774,96145.0,96144.0,0.00035305]
[1738996279628,0.9220131,96145.0,96144.0,0.00035305]
[1738996280420,0.9180131,96145.0,96144.0,0.00035305]
[1738996280618,0.9130131,96145.0,96144.0,0.00035305]
[1738996280868,0.9210131,96145.0,96144.0,0.00135305]
[1738996281035,0.9280131,96145.0,96144.0,0.00235305]
[1738996282057,0.76836774,96145.0,96144.0,0.00235305]
[1738996282778,0.63286409,96145.0,96144.0,0.00235305]
[1738996282982,0.55616409,96145.0,96144.0,0.00235305]
[1738996289291,0.54916409,96145.0,96144.0,0.00035305]
[1738996289541,0.54116409,96145.0,96144.0,0.00035305]
[1738996289750,0.54116409,96145.0,96144.0,0.00135305]
[1738996289751,0.55016409,96145.0,96144.0,0.00135305]
[1738996289984,0.55016409,96145.0,96144.0,0.00035305]
[1738996290203,0.54616409,96145.0,96144.0,0.00035305]
[1738996290374,0.55316409,96145.0,96144.0,0.00135305]
[1738996290583,0.56016409,96145.0,96144.0,0.00235305]
[1738996292007,0.55516409,96145.0,96144.0,0.00235305]
[1738996292158,0.54816409,96145.0,96144.0,0.00135305]
[1738996292361,0.55516409,96145.0,96144.0,0.00135305]
[1738996292563,0.54816409,96145.0,96144.0,0.00035305]
[1738996292975,0.55616409,96145.0,96144.0,0.00135305]
[1738996301928,0.54116409,96145.0,96144.0,0.00035305]
[1738996302228,0.55816409,96145.0,96144.0,0.00135305]
[1738996311649,0.56816409,96145.0,96144.0,0.00135305]
[1738996312060,0.57846081,96145.0,96144.0,0.00135305]
[1738996313255,0.55816409,96145.0,96144.0,0.00135305]
[1738996313458,0.56816409,96145.0,96144.0,0.00135305]
[1738996313665,0.5778145,96145.0,96144.0,0.00135305]
[1738996315962,0.5880323,96145.0,96144.0,0.00135305]
[1738996316366,0.5778145,96145.0,96144.0,0.00135305]
[1738996319046,0.56816409,96145.0,96144.0,0.00135305]
[1738996325437,0.57781268,96145.0,96144.0,0.00135305]
[1738996328921,0.56781268,96145.0,96144.0,0.00135305]
[1738996329651,0.55981268,96145.0,96144.0,0.00135305]
[1738996329986,0.56881268,96145.0,96144.0,0.00135305]
[1738996330627,0.55981268,96145.0,96144.0,0.00035305]
[1738996331024,0.56881268,96145.0,96144.0,0.00135305]
[1738996331250,0.55916409,96145.0,96144.0,0.00135305]
[1738996333743,0.56880843,96145.0,96144.0,0.00135305]
[1738996336601,0.55916409,96145.0,96144.0,0.00135305]
[1738996337709,0.56916409,96145.0,96144.0,0.00135305]
[1738996341909,0.57880615,96145.0,96144.0,0.00135305]
[1738996342116,0.56880615,96145.0,96144.0,0.00135305]
[1738996343079,0.55916409,96145.0,96144.0,0.00135305]
[1738996347122,0.56880609,96145.0,96144.0,0.00135305]
[1738996348582,0.156031,96135.0,96131.0,0.0467]
[1738996348738,0.00103794,96134.0,96131.0,0.04674545]
[1738996348944,0.01876482,96134.0,96131.0,0.04674545]
[1738996349666,0.156035,96132.0,96131.0,0.04674545]
[1738996349825,0.15707294,96132.0,96131.0,0.04774545]
[1738996350225,0.17479982,96132.0,96131.0,0.04774545]
[1738996350427,0.17479982,96132.0,96131.0,0.04674545]
[1738996350659,0.48918401,96132.0,96131.0,0.04674545]
[1738996350854,0.48918401,96132.0,96131.0,0.04774545]
[1738996350855,0.49714607,96132.0,96131.0,0.04774545]
[1738996351462,0.50678807,96132.0,96131.0,0.04774545]
[1738996351646,0.35075307,96132.0,96131.0,0.04774545]
[1738996351830,0.35675307,96132.0,96131.0,0.04774545]
[1738996352075,0.35075307,96132.0,96131.0,0.04774545]
[1738996352449,0.35875307,96132.0,96131.0,0.04774545]
[1738996353257,0.51478807,96132.0,96131.0,0.04774545]
[1738996354997,0.51478807,96132.0,96131.0,0.00104545]
[1738996355353,0.51478807,96132.0,96131.0,0.00115225]
[1738996355530,0.35875307,96132.0,96131.0,0.00115225]
[1738996358950,0.51478807,96132.0,96131.0,0.00115225]
[1738996359248,0.35875307,96132.0,96131.0,0.00115225]
[1738996360653,0.51478807,96132.0,96131.0,0.00115225]
[1738996362468,0.35875307,96132.0,96131.0,0.00115225]
[1738996363269,0.51478807,96132.0,96131.0,0.00115225]
[1738996364716,0.35875307,96132.0,96131.0,0.00115225]
[1738996364882,0.51478807,96132.0,96131.0,0.00115225]
[1738996366073,0.35875307,96132.0,96131.0,0.00115225]
[1738996366275,0.53023652,96132.0,96131.0,0.00115225]
[1738996366706,0.53023652,96132.0,96122.0,0.0456]
[1738996366707,0.40654577,96132.0,96122.0,0.0456]
[1738996366879,0.40654577,96132.0,96124.0,0.00026974]
[1738996366880,0.208051,96130.0,96124.0,0.00026974]
[1738996367085,0.156043,96127.0,96124.0,0.00026974]
[1738996367290,0.02071909,96125.0,96124.0,0.00026974]
[1738996367491,0.03948314,96125.0,96124.0,0.00026974]
[1738996368030,0.06457359,96125.0,96124.0,0.00026974]
[1738996368207,0.09691233,96125.0,96124.0,0.00026974]
[1738996368408,0.06457359,96125.0,96124.0,0.00026974]
[1738996368588,0.06457359,96125.0,96124.0,0.00126974]
[1738996369141,0.06957359,96125.0,96124.0,0.00026974]
[1738996369344,0.07457359,96125.0,96124.0,0.00126974]
[1738996369755,0.07957359,96125.0,96124.0,0.00126974]
[1738996370708,0.07457359,96125.0,96124.0,0.00026974]
[1738996371259,0.07057359,96125.0,96124.0,0.00026974]
[1738996371418,0.39095778,96125.0,96124.0,0.00026974]
[1738996371623,0.37791984,96125.0,96124.0,0.00026974]
[1738996371818,0.38691984,96125.0,96124.0,0.00026974]
[1738996372023,0.39491984,96125.0,96124.0,0.00026974]
[1738996376601,0.08053565,96125.0,96124.0,0.00026974]
[1738996376808,0.08157359,96125.0,96124.0,0.00026974]
[1738996381141,0.29737724,96125.0,96124.0,1e-08]
[1738996381342,0.29737724,96125.0,96111.0,0.01046686]
[1738996381343,0.01,96124.0,96111.0,0.01046686]
[1738996381590,0.01,96124.0,96100.0,0.00026974]
[1738996381591,0.0954236,96121.0,96100.0,0.00026974]
[1738996381719,0.00103794,96120.0,96101.0,0.0822]
[1738996382142,0.01771596,96119.0,96101.0,0.0822]
[1738996382371,0.00103794,96118.0,96101.0,0.0822]
[1738996382921,0.01771596,96117.0,96101.0,0.0822]
[1738996383173,0.00103794,96116.0,96102.0,0.1959]
[1738996383348,0.00103794,96116.0,96103.0,0.1281]
[1738996383564,0.00103794,96117.0,96105.0,0.1281]
[1738996383762,0.00103794,96117.0,96107.0,0.1281]
[1738996383984,0.0211984,96112.0,96108.0,0.0459]
[1738996384387,0.01771596,96111.0,96108.0,0.0459]
[1738996385725,0.02509045,96110.0,96108.0,0.0459]
[1738996386145,0.02612839,96110.0,96108.0,0.0459]
[1738996386348,0.01771596,96109.0,96108.0,0.0459]
[1738996387035,0.04280641,96109.0,96108.0,0.0459]
[1738996387444,0.04280641,96109.0,96108.0,0.0469]
[1738996388097,0.04780641,96109.0,96108.0,0.0469]
[1738996388451,0.04780641,96109.0,96108.0,0.0459]
[1738996389933,0.05280641,96109.0,96108.0,0.0469]
[1738996392510,0.05280641,96109.0,96108.0,0.0470068]
[1738996394733,0.14582432,96109.0,96108.0,0.0470068]
[1738996404005,0.00022428,96132.0,96123.0,0.15]
[1738996404202,0.00022428,96132.0,96124.0,0.15]
[1738996406236,0.00822428,96132.0,96124.0,0.156047]
[1738996406442,0.01522428,96132.0,96124.0,0.157047]
[1738996406652,0.01522428,96132.0,96124.0,0.151]
[1738996406854,0.02122428,96132.0,96124.0,0.152]
[1738996407526,0.02122428,96132.0,96124.0,0.308047]
[1738996407961,0.02122428,96132.0,96126.0,0.15]
[1738996408983,0.01422428,96132.0,96126.0,0.15]
[1738996409367,0.00822428,96132.0,96126.0,0.151]
[1738996410407,0.00822428,96132.0,96126.0,0.001]
[1738996413210,0.00822428,96132.0,96128.0,0.15]
[1738996414737,0.00022428,96132.0,96128.0,0.15]
[1738996414918,0.00922428,96132.0,96128.0,0.151]
[1738996415134,0.00922428,96132.0,96128.0,0.001]
[1738996415550,0.00922428,96132.0,96126.0,0.15]
[1738996415755,0.00722428,96132.0,96128.0,0.001]
[1738996416152,0.01222428,96132.0,96128.0,0.001]
[1738996416367,0.01622428,96132.0,96128.0,0.001]
[1738996416558,0.00422428,96132.0,96126.0,0.15]
[1738996416961,0.00822428,96132.0,96126.0,0.15]
[1738996417278,0.00022428,96132.0,96126.0,0.15]
[1738996417509,0.00022428,96132.0,96124.0,0.15]
[1738996418002,0.00522428,96132.0,96126.0,0.15]
[1738996418396,0.00022428,96132.0,96126.0,0.15]
[1738996418592,0.00422428,96132.0,96126.0,0.15]
[1738996418810,0.00722428,96132.0,96126.0,0.15]
[1738996419010,0.00322428,96132.0,96126.0,0.15]
[1738996419378,0.00422428,96132.0,96124.0,0.15]
[1738996419550,0.00822428,96132.0,96124.0,0.15]
[1738996420256,0.0092679,96131.0,96124.0,0.15]
[1738996421717,0.01030584,96130.0,96123.0,0.06043533]
[1738996422526,0.0092679,96130.0,96123.0,0.06043533]
[1738996423155,0.0122679,96130.0,96123.0,0.06043533]
[1738996423352,0.0240969,96129.0,96123.0,0.06043533]
[1738996424734,0.0240969,96128.0,96123.0,0.06043533]
[1738996425961,0.01691161,96127.0,96123.0,0.06043533]
[1738996426155,0.04100851,96127.0,96123.0,0.06043533]
[1738996426461,0.0240969,96127.0,96123.0,0.06043533]
[1738996427158,0.00103794,96126.0,96123.0,0.01063533]
[1738996427401,0.00103794,96126.0,96119.0,0.15]
[1738996427811,0.02513484,96127.0,96116.0,0.15]
[1738996427961,0.02513484,96127.0,96119.0,0.01046211]
[1738996427962,0.00103794,96126.0,96119.0,0.01046211]
[1738996428167,0.02513484,96126.0,96116.0,0.15]
[1738996428767,0.02513484,96126.0,96114.0,0.199]
[1738996429117,0.02613484,96126.0,96114.0,0.20942784]
[1738996429510,0.02713484,96126.0,96114.0,0.20942784]
[1738996429712,0.0240969,96125.0,96114.0,0.20942784]
[1738996429892,0.00103794,96124.0,96114.0,0.05942784]
[1738996430103,0.00103794,96124.0,96116.0,0.156061]
[1738996431103,0.0240969,96123.0,96116.0,0.156061]
[1738996431430,0.0240969,96123.0,96120.0,0.15]
[1738996432405,0.04100497,96122.0,96120.0,0.15]
[1738996432607,0.04100497,96122.0,96120.0,0.156054]
[1738996433736,0.0240969,96121.0,96120.0,0.156054]
[1738996435862,0.0270969,96121.0,96120.0,0.156054]
[1738996436413,0.0300969,96121.0,96120.0,0.156054]
[1738996437228,0.0270969,96121.0,96120.0,0.156054]
[1738996438016,0.0240969,96121.0,96120.0,0.156054]
[1738996438579,0.01077836,96121.0,96120.0,0.156054]
[1738996438855,0.01077836,96121.0,96120.0,0.354054]
[1738996439053,0.00977836,96121.0,96120.0,0.354054]
[1738996439420,0.01177836,96121.0,96120.0,0.354054]
[1738996439640,0.00677836,96121.0,96120.0,0.354054]
[1738996440224,0.00877836,96121.0,96120.0,0.354054]
[1738996441214,0.00677836,96121.0,96120.0,0.354054]
[1738996441418,0.00577836,96121.0,96120.0,0.354054]
[1738996441809,0.00677836,96121.0,96120.0,0.354054]
[1738996442160,0.00668926,96121.0,96120.0,0.354054]
[1738996444519,0.00668926,96121.0,96120.0,0.198]
[1738996444706,0.00668926,96121.0,96120.0,0.15]
[1738996449540,0.03845656,96121.0,96120.0,0.15]
[1738996449739,0.02154628,96121.0,96120.0,0.15]
[1738996450034,0.03845656,96121.0,96120.0,0.15]
[1738996450867,0.03745656,96121.0,96120.0,0.15]
[1738996451274,0.03945656,96121.0,96120.0,0.15]
[1738996451574,0.03845656,96121.0,96120.0,0.15]
[1738996451786,0.04045656,96121.0,96120.0,0.15]
[1738996451950,0.02154628,96121.0,96120.0,0.15]
[1738996452318,0.02354628,96121.0,96120.0,0.15]
[1738996452512,0.02354628,96121.0,96120.0,0.1501068]
[1738996452755,0.02177056,96121.0,96120.0,0.1501068]
[1738996454893,0.02277056,96121.0,96120.0,0.1501068]
[1738996455891,0.02277056,96121.0,96120.0,0.3061608]
[1738996461788,0.11582517,96121.0,96120.0,0.3061608]
[1738996462178,0.04780166,96121.0,96120.0,0.45686445]
[1738996462394,0.04780166,96121.0,96120.0,0.49265665]
[1738996462738,0.04780166,96121.0,96120.0,0.56895665]
[1738996463179,0.04780166,96121.0,96120.0,0.53316445]
[1738996463382,0.00022428,96127.0,96126.0,0.306045]
[1738996463604,0.00022428,96127.0,96126.0,0.40854865]
[1738996464630,0.00126222,96144.0,96131.0,0.306037]
[1738996466072,0.00522428,96132.0,96131.0,0.307037]
[1738996466945,0.01122428,96132.0,96131.0,0.308037]
[1738996473969,0.0256289,96132.0,96131.0,0.308037]
[1738996474877,0.03463129,96132.0,96131.0,0.308037]
[1738996481815,0.04859194,96132.0,96131.0,0.308037]
[1738996485115,0.06550081,96132.0,96131.0,0.308037]
[1738996485351,0.05154016,96132.0,96131.0,0.308037]
[1738996485819,0.03463129,96132.0,96131.0,0.308037]
[1738996491742,0.03463129,96132.0,96131.0,0.152]
[1738996491948,0.05153916,96132.0,96131.0,0.152]
[1738996498824,0.05143365,96132.0,96131.0,0.152]
[1738996499270,0.05143365,96132.0,96131.0,0.308037]
[1738996499485,0.03452578,96132.0,96131.0,0.308037]
[1738996512375,0.03452578,96132.0,96131.0,0.353037]
[1738996513615,0.03452578,96132.0,96131.0,0.3531438]
[1738996522518,0.0245875,96132.0,96131.0,0.3531438]
[1738996523911,0.01018288,96132.0,96131.0,0.3531438]
[1738996525389,0.0807359,96134.0,96132.0,0.15]
[1738996525533,0.0807359,96134.0,96133.0,0.306033]
[1738996525741,0.0807359,96135.0,96134.0,0.306032]
[1738996525940,0.08078131,96135.0,96134.0,0.306032]
[1738996527386,0.09178131,96135.0,96134.0,0.307032]
[1738996529412,0.01104541,96135.0,96134.0,0.307032]
[1738996535635,0.02501572,96135.0,96134.0,0.307032]
[1738996537839,0.02501572,96135.0,96134.0,0.3071388]
[1738996538044,0.02524,96135.0,96134.0,0.3071388]
[1738996538425,0.03384455,96135.0,96134.0,0.3071388]
[1738996566821,0.00022428,96144.0,96143.0,0.156017]
[1738996567020,0.00022428,96144.0,96143.0,0.306017]
[1738996568445,0.00522428,96144.0,96143.0,0.307017]
[1738996568891,0.01122428,96144.0,96143.0,0.308017]
[1738996571240,0.01122428,96144.0,96143.0,0.31834776]
[1738996572003,0.01122428,96144.0,96143.0,0.33920048]
[1738996576770,0.10431081,96144.0,96143.0,0.33920048]
[1738996576945,0.10431081,96144.0,96143.0,0.31834776]
[1738996577192,0.12303857,96144.0,96143.0,0.31834776]
[1738996578132,0.13628438,96144.0,96143.0,0.31834776]
[1738996579298,0.04319785,96144.0,96143.0,0.31834776]
[1738996579691,0.03274895,96144.0,96143.0,0.31834776]
[1738996596239,0.03378689,96144.0,96143.0,0.16233076]
[1738996596441,0.03274895,96144.0,96143.0,0.16233076]
[1738996596645,0.01950314,96144.0,96143.0,0.16233076]
[1738996599288,0.01122428,96144.0,96143.0,0.16233076]
[1738996599902,0.0321644,96144.0,96143.0,0.16233076]
[1738996605396,0.13466805,96144.0,96143.0,0.16233076]
[1738996605612,0.17804397,96144.0,96143.0,0.16233076]
[1738996605750,0.19676548,96144.0,96143.0,0.16233076]
[1738996606444,0.19176548,96144.0,96143.0,0.16133076]
[1738996606801,0.18976548,96144.0,96143.0,0.16033076]
[1738996606998,0.19376548,96144.0,96143.0,0.01033076]
[1738996607206,0.01,96141.0,96138.0,0.03877678]
[1738996607404,0.10250365,96140.0,96138.0,0.03877678]
[1738996607608,0.01872151,96139.0,96138.0,0.03877678]
[1738996607810,0.12122516,96139.0,96138.0,0.03877678]
[1738996608709,0.12122516,96139.0,96138.0,0.05336809]
[1738996608914,0.12927905,96139.0,96138.0,0.05336809]
[1738996609122,0.12927905,96139.0,96138.0,0.05436809]
[1738996609733,0.12927905,96139.0,96138.0,0.05336809]
[1738996609734,0.13527905,96139.0,96138.0,0.05336809]
[1738996609968,0.14327905,96139.0,96138.0,0.05436809]
[1738996610136,0.14327905,96139.0,96138.0,0.25427489]
[1738996610137,0.02205389,96139.0,96138.0,0.25427489]
[1738996610355,0.03272151,96139.0,96138.0,0.25427489]
[1738996610558,0.014,96139.0,96138.0,0.25427489]
[1738996616379,0.014,96139.0,96138.0,0.33077489]
[1738996617137,0.10708602,96139.0,96138.0,0.33077489]
[1738996619434,0.014,96139.0,96138.0,0.33077489]
[1738996623876,0.014,96139.0,96138.0,0.48679989]
[1738996624285,0.014,96139.0,96138.0,0.48242269]
[1738996628992,0.014,96139.0,96138.0,0.40592269]
[1738996637344,0.0900068,96166.0,96144.0,0.023]
[1738996637552,0.13484363,96165.0,96157.0,0.15]
[1738996637744,0.13484363,96165.0,96161.0,0.15]
[1738996637745,0.03233998,96164.0,96161.0,0.15]
[1738996637978,0.13484363,96164.0,96161.0,0.15]
[1738996638211,0.03233998,96163.0,96161.0,0.15]
[1738996638379,0.05105844,96163.0,96161.0,0.155987]
[1738996638705,0.03233998,96162.0,96160.0,0.155989]
[1738996638932,0.01871846,96162.0,96161.0,0.15]
[1738996639115,0.05104795,96162.0,96161.0,0.15]
[1738996639309,0.01871846,96162.0,96161.0,0.151]
[1738996639653,0.11050365,96164.0,96161.0,0.001]
[1738996639983,0.01871846,96163.0,96161.0,0.001]
[1738996640402,0.02371846,96163.0,96161.0,0.001]
[1738996640616,0.02371846,96163.0,96162.0,0.305986]
[1738996640822,0.02371846,96163.0,96162.0,0.15]
[1738996641133,0.0221052,96163.0,96162.0,0.15]
[1738996641275,0.0171052,96163.0,96162.0,0.15]
[1738996644578,0.0191052,96163.0,96162.0,0.151]
[1738996644949,0.002,96163.0,96162.0,0.151]
[1738996645831,0.10250365,96164.0,96163.0,0.15]
[1738996646108,0.002,96163.0,96160.0,0.15]
[1738996646986,0.01864513,96162.0,96160.0,0.15]
[1738996647778,0.0031068,96164.0,96163.0,0.305985]
[1738996648177,0.0001068,96164.0,96163.0,0.305985]
[1738996649534,0.0031068,96164.0,96163.0,0.305985]
[1738996650546,0.0061068,96164.0,96163.0,0.305985]
[1738996650757,0.0031068,96164.0,96163.0,0.305985]
[1738996651256,0.0061068,96164.0,96163.0,0.305985]
[1738996656508,0.09908619,96164.0,96163.0,0.305985]
[1738996657833,0.09908619,96164.0,96163.0,0.458685]
[1738996658655,0.09908619,96164.0,96163.0,0.45890928]
[1738996659638,0.09608619,96164.0,96163.0,0.45890928]
[1738996660121,0.09808619,96164.0,96163.0,0.45890928]
[1738996660500,0.0081068,96164.0,96163.0,0.45890928]
[1738996661077,0.0051068,96164.0,96163.0,0.45890928]
[1738996661280,0.0081068,96164.0,96163.0,0.45890928]
[1738996663662,1e-08,96166.0,96165.0,0.305981]
[1738996663865,1e-08,96166.0,96165.0,0.328981]
[1738996664803,0.00300001,96166.0,96165.0,0.329981]
[1738996666177,0.00400001,96166.0,96165.0,0.329981]
[1738996667153,0.00100001,96166.0,96165.0,0.328981]
[1738996667503,1e-08,96166.0,96165.0,0.328981]
[1738996671255,1e-08,96166.0,96165.0,0.305981]
[1738996671667,1e-08,96166.0,96165.0,0.30620507]
[1738996672217,0.00010671,96166.0,96165.0,0.30620507]
[1738996673001,0.00110671,96166.0,96165.0,0.30620507]
[1738996676072,0.00010671,96166.0,96165.0,0.30620507]
[1738996676268,0.00110671,96166.0,96165.0,0.30620507]
[1738996676953,0.00210671,96166.0,96165.0,0.32920507]
[1738996678268,0.00210671,96166.0,96165.0,0.32875093]
[1738996680839,0.00210671,96166.0,96165.0,0.30575093]
[1738996688436,0.00210671,96166.0,96165.0,0.35305093]
[1738996688836,0.00210671,96166.0,96165.0,0.37605093]
[1738996689037,0.00103794,96184.0,96181.0,0.15]
[1738996689300,0.01,96186.0,96184.0,0.15]
[1738996689650,0.03234532,96185.0,96184.0,0.15]
[1738996690011,0.03234532,96185.0,96184.0,0.305951]
[1738996690704,0.03334532,96185.0,96184.0,0.305951]
[1738996691534,0.03196747,96185.0,96184.0,0.305951]
[1738996692801,0.13447112,96185.0,96184.0,0.305951]
[1738996693191,0.15314513,96185.0,96184.0,0.305951]
[1738996693355,0.13447112,96185.0,96184.0,0.305951]
[1738996693550,0.15314513,96185.0,96184.0,0.305951]
[1738996694058,0.15314513,96185.0,96184.0,0.31636175]
[1738996694961,0.15325183,96185.0,96184.0,0.31636175]
[1738996706570,0.22905183,96185.0,96184.0,0.31636175]
[1738996707438,0.22905183,96185.0,96184.0,0.31658603]
[1738996711347,0.15325183,96185.0,96184.0,0.31658603]
[1738996714377,0.15325183,96185.0,96184.0,0.01063503]
[1738996714584,0.16428977,96185.0,96184.0,0.01063503]
[1738996714784,0.14561576,96185.0,96184.0,0.01063503]
[1738996715004,0.1632548,96185.0,96184.0,0.01063503]
[1738996721339,0.16429274,96185.0,96184.0,0.01063503]
[1738996723022,0.17091081,96185.0,96184.0,0.01063503]
[1738996723196,0.16987287,96185.0,96184.0,0.01063503]
[1738996730301,0.15987287,96185.0,96184.0,0.16658603]
[1738996730608,0.05736922,96185.0,96184.0,0.33749254]
[1738996730955,0.03869224,96185.0,96184.0,0.33749254]
[1738996731128,0.00772477,96185.0,96184.0,0.42039254]
[1738996731923,0.0011067,96185.0,96184.0,0.42039254]
[1738996732761,0.0011067,96185.0,96184.0,0.39948603]
[1738996744820,0.0011067,96185.0,96184.0,0.31658603]
[1738996745430,0.0011067,96185.0,96184.0,0.33749254]
[1738996745990,0.0011067,96185.0,96184.0,0.31658603]
[1738996754209,0.10361035,96185.0,96184.0,0.16063503]
[1738996754416,0.13592833,96185.0,96184.0,0.31658603]
[1738996754819,0.15375867,96185.0,96184.0,0.31658603]
[1738996755180,0.15375867,96185.0,96184.0,0.16063503]
[1738996755391,0.16479661,96185.0,96184.0,0.16063503]
[1738996755739,0.16375867,96185.0,96184.0,0.16063503]
[1738996761381,0.16275867,96185.0,96184.0,0.16163503]
[1738996761709,0.16475867,96185.0,96184.0,0.16163503]
[1738996761857,0.16475867,96185.0,96184.0,0.16063503]
[1738996762204,0.16675867,96185.0,96184.0,0.16163503]
[1738996762541,0.16275867,96185.0,96184.0,0.16063503]
[1738996762742,0.16475867,96185.0,96184.0,0.16063503]
[1738996763153,0.16975867,96185.0,96184.0,0.16163503]
[1738996763837,0.16475867,96185.0,96184.0,0.16063503]
[1738996764059,0.17275867,96185.0,96184.0,0.16163503]
[1738996770796,0.17937211,96185.0,96184.0,0.16163503]
[1738996777393,0.17275867,96185.0,96184.0,0.16163503]
[1738996781513,0.16475867,96185.0,96184.0,0.16063503]
[1738996781730,0.16275867,96185.0,96184.0,0.16063503]
[1738996782016,0.16975867,96185.0,96184.0,0.16163503]
[1738996788878,0.17975867,96185.0,96184.0,0.01163503]
[1738996789066,0.18079661,96185.0,96184.0,0.01163503]
[1738996796233,0.4951808,96185.0,96184.0,0.01163503]
[1738996796436,0.49414286,96185.0,96184.0,0.01163503]
[1738996798609,0.49414286,96185.0,96184.0,0.00122428]
[1738996806458,0.48914286,96185.0,96184.0,0.00022428]
[1738996806837,0.49414286,96185.0,96184.0,0.00122428]
[1738996807774,0.49214286,96185.0,96184.0,0.00122428]
[1738996807969,0.49214286,96185.0,96184.0,0.00222428]
[1738996808238,0.49914286,96185.0,96184.0,0.00222428]
[1738996811606,0.50678286,96185.0,96184.0,0.00222428]
[1738996822327,0.49914286,96185.0,96184.0,0.00222428]
[1738996822553,0.50678286,96185.0,96184.0,0.00222428]
[1738996827942,0.16475867,96185.0,96184.0,0.23887528]
[1738996828145,0.16475867,96185.0,96184.0,0.25978179]
[1738996828369,0.16475867,96185.0,96184.0,0.30658179]
[1738996829851,0.16475867,96185.0,96184.0,0.28567528]
[1738996830089,0.17475867,96185.0,96184.0,0.20497528]
[1738996834981,0.18475867,96185.0,96184.0,0.00222428]
[1738996835206,0.18579661,96185.0,96184.0,0.00222428]
[1738996837618,0.60566046,96185.0,96184.0,0.00222428]
[1738996837818,0.60462252,96185.0,96184.0,0.00222428]
[1738996838686,0.59962252,96185.0,96184.0,0.00122428]
[1738996838877,0.59262252,96185.0,96184.0,0.00022428]
[1738996839319,0.60162252,96185.0,96184.0,0.00122428]
[1738996840174,0.61062252,96185.0,96184.0,0.00222428]
[1738996840321,0.60162252,96185.0,96184.0,0.00122428]
[1738996840538,0.59262252,96185.0,96184.0,0.00022428]
[1738996840916,0.60162252,96185.0,96184.0,0.00122428]
[1738996841538,0.61062252,96185.0,96184.0,0.00222428]
[1738996842080,0.81507152,96185.0,96184.0,0.00222428]
[1738996850033,0.65912252,96185.0,96184.0,0.00222428]
[1738996851964,0.64129218,96185.0,96184.0,0.00222428]
[1738996852168,0.66034723,96185.0,96184.0,0.00222428]
[1738996856935,0.59384723,96185.0,96184.0,0.00022428]
[1738996857142,0.59384723,96185.0,96184.0,0.00122428]
[1738996857266,0.60284723,96185.0,96184.0,0.00122428]
[1738996857462,0.61184723,96185.0,96184.0,0.00222428]
[1738996866849,0.52994723,96185.0,96184.0,0.00222428]
[1738996867048,0.50636757,96185.0,96184.0,0.00222428]
[1738996869755,0.49636757,96185.0,96184.0,0.00222428]
[1738996869972,0.51396757,96185.0,96184.0,0.00222428]
[1738996870201,0.50396757,96185.0,96184.0,0.00222428]
[1738996870613,0.51396757,96185.0,96184.0,0.00222428]
[1738996870827,0.50636757,96185.0,96184.0,0.07862428]
[1738996873002,0.49636757,96185.0,96184.0,0.07862428]
[1738996873155,0.50636757,96185.0,96184.0,0.07862428]
[1738996876546,0.50636757,96185.0,96184.0,0.00222428]
[1738996877580,0.55776433,96185.0,96184.0,0.00222428]
[1738996878367,0.50636757,96185.0,96184.0,0.00222428]
[1738996880037,0.73851657,96185.0,96184.0,0.00222428]
[1738996882727,0.74611657,96185.0,96184.0,0.00222428]
[1738996888284,0.66991657,96185.0,96184.0,0.00222428]
[1738996888710,0.49396757,96185.0,96184.0,0.00222428]
[1738996888923,0.50396757,96185.0,96184.0,0.00222428]
[1738996889280,0.49396757,96185.0,96184.0,0.00222428]
[1738996889490,0.50396757,96185.0,96184.0,0.00222428]
[1738996891426,0.51396757,96185.0,96184.0,0.00222428]
[1738996891794,0.50396757,96185.0,96184.0,0.00222428]
[1738996894245,0.49636757,96185.0,96184.0,0.00222428]
[1738996894451,0.50396757,96185.0,96184.0,0.00222428]
[1738996895010,0.65991657,96185.0,96184.0,0.00222428]
[1738996895395,0.50396757,96185.0,96184.0,0.00222428]
[1738996896802,0.66991657,96185.0,96184.0,0.00222428]
[1738996902461,0.50396757,96185.0,96184.0,0.00222428]
[1738996904269,0.65991657,96185.0,96184.0,0.00222428]
[1738996905327,0.50396757,96185.0,96184.0,0.00222428]
[1738996905529,0.65991657,96185.0,96184.0,0.00222428]
[1738996907372,0.66991657,96185.0,96184.0,0.00222428]
[1738996907541,0.65991657,96185.0,96184.0,0.00222428]
[1738996908803,0.50396757,96185.0,96184.0,0.00222428]
[1738996909037,0.49396757,96185.0,96184.0,0.00222428]